[Event "Titled Tuesday Blitz December 06 Early 2022"]
[White "Daneshvar, Bardiya"]
[Black "Paravyan, David"]
[WhiteFideId "12576468"]
[BlackFideId "4194985"]
[WhiteElo "2429"]
[BlackElo "2551"]
[Result "1-0"]
[Round "09"]
[TimeControl "180+1"]
[Date "2022.12.06"]
[WhiteClock "0:00:09"]
[BlackClock "0:00:07"]

1. Nf3 {[%clk 0:03:00]}  Nf6 {[%clk 0:02:58]} 2. c4 {[%clk 0:03:00]}  g6 {[%clk 0:02:58]} 3. Nc3 {[%clk 0:03:00]}  d5 {[%clk 0:02:59]} 4. cxd5 {[%clk 0:03:01]}  Nxd5 {[%clk 0:03:00]} 5. h4 {[%clk 0:03:01]}  Bg7 {[%clk 0:02:59]} 6. e4 {[%clk 0:03:01]}  Nxc3 {[%clk 0:02:59]} 7. dxc3 {[%clk 0:03:02]}  Qxd1+ {[%clk 0:02:59]} 8. Kxd1 {[%clk 0:03:03]}  Nd7 {[%clk 0:03:00]} 9. Nd4 {[%clk 0:03:02]}  Nc5 {[%clk 0:02:55]} 10. f3 {[%clk 0:03:02]}  h5 {[%clk 0:02:53]} 11. Be3 {[%clk 0:03:01]}  Bd7 {[%clk 0:02:49]} 12. Kc2 {[%clk 0:02:59]}  Ne6 {[%clk 0:02:41]} 13. Bc4 {[%clk 0:02:58]}  Nxd4+ {[%clk 0:02:40]} 14. cxd4 {[%clk 0:02:59]}  e6 {[%clk 0:02:35]} 15. b4 {[%clk 0:02:58]}  Ba4+ {[%clk 0:02:13]} 16. Bb3 {[%clk 0:02:57]}  Bxb3+ {[%clk 0:02:12]} 17. axb3 {[%clk 0:02:54]}  Kd7 {[%clk 0:02:06]} 18. b5 {[%clk 0:02:54]}  Rhc8 {[%clk 0:02:03]} 19. Kd3 {[%clk 0:02:54]}  c6 {[%clk 0:01:58]} 20. bxc6+ {[%clk 0:02:54]}  Rxc6 {[%clk 0:01:58]} 21. Rhc1 {[%clk 0:02:55]}  Rxc1 {[%clk 0:01:56]} 22. Rxc1 {[%clk 0:02:56]}  a5 {[%clk 0:01:45]} 23. Bf4 {[%clk 0:02:46]}  a4 {[%clk 0:01:09]} 24. bxa4 {[%clk 0:02:29]}  Rxa4 {[%clk 0:01:07]} 25. Rc7+ {[%clk 0:02:28]}  Ke8 {[%clk 0:01:07]} 26. e5 {[%clk 0:02:21]}  Ra3+ {[%clk 0:00:56]} 27. Ke2 {[%clk 0:02:13]}  Ra2+ {[%clk 0:00:52]} 28. Kf1 {[%clk 0:02:03]}  Ra8 {[%clk 0:00:46]} 29. Rxb7 {[%clk 0:01:59]}  Bf8 {[%clk 0:00:46]} 30. Bg5 {[%clk 0:01:53]}  Ba3 {[%clk 0:00:41]} 31. Ke2 {[%clk 0:01:51]}  Rc8 {[%clk 0:00:29]} 32. Kd3 {[%clk 0:01:49]}  Bc1 {[%clk 0:00:29]} 33. Bf6 {[%clk 0:01:31]}  Kf8 {[%clk 0:00:29]} 34. g4 {[%clk 0:01:29]}  Kg8 {[%clk 0:00:22]} 35. Ke4 {[%clk 0:01:23]}  Bh6 {[%clk 0:00:13]} 36. gxh5 {[%clk 0:01:17]}  gxh5 {[%clk 0:00:14]} 37. f4 {[%clk 0:01:17]}  Bf8 {[%clk 0:00:09]} 38. f5 {[%clk 0:01:16]}  Re8 {[%clk 0:00:04]} 39. Kf4 {[%clk 0:01:11]}  Bh6+ {[%clk 0:00:04]} 40. Bg5 {[%clk 0:01:12]}  Bg7 {[%clk 0:00:04]} 41. Ke4 {[%clk 0:01:10]}  Bf8 {[%clk 0:00:04]} 42. Rb1 {[%clk 0:01:03]}  Bg7 {[%clk 0:00:03]} 43. Rg1 {[%clk 0:01:02]}  Kh7 {[%clk 0:00:03]} 44. f6 {[%clk 0:01:00]}  Bf8 {[%clk 0:00:04]} 45. Be3 {[%clk 0:01:00]}  Ra8 {[%clk 0:00:02]} 46. Rg5 {[%clk 0:01:01]}  Ra1 {[%clk 0:00:01]} 47. Rxh5+ {[%clk 0:01:01]}  Kg8 {[%clk 0:00:02]} 48. Rg5+ {[%clk 0:01:02]}  Kh7 {[%clk 0:00:02]} 49. Rg2 {[%clk 0:00:53]}  Re1 {[%clk 0:00:03]} 50. Kf3 {[%clk 0:00:51]}  Rf1+ {[%clk 0:00:03]} 51. Ke2 {[%clk 0:00:45]}  Rh1 {[%clk 0:00:03]} 52. Rg4 {[%clk 0:00:42]}  Rh3 {[%clk 0:00:02]} 53. Re4 {[%clk 0:00:41]}  Kg6 {[%clk 0:00:02]} 54. Rg4+ {[%clk 0:00:41]}  Kf5 {[%clk 0:00:01]} 55. Rf4+ {[%clk 0:00:38]}  Kg6 {[%clk 0:00:02]} 56. Rg4+ {[%clk 0:00:24]}  Kf5 {[%clk 0:00:03]} 57. Rg8 {[%clk 0:00:25]}  Ba3 {[%clk 0:00:02]} 58. Rg5+ {[%clk 0:00:21]}  Ke4 {[%clk 0:00:02]} 59. Rg4+ {[%clk 0:00:21]}  Kd5 {[%clk 0:00:02]} 60. Bf2 {[%clk 0:00:16]}  Bb2 {[%clk 0:00:02]} 61. Kf1 {[%clk 0:00:13]}  Rh1+ {[%clk 0:00:01]} 62. Kg2 {[%clk 0:00:14]}  Rd1 {[%clk 0:00:01]} 63. h5 {[%clk 0:00:14]}  Rc1 {[%clk 0:00:02]} 64. Kf3 {[%clk 0:00:10]}  Rc8 {[%clk 0:00:02]} 65. Rg7 {[%clk 0:00:09]}  Rh8 {[%clk 0:00:02]} 66. Rxf7 {[%clk 0:00:09]}  Rxh5 {[%clk 0:00:02]} 67. Rd7+ {[%clk 0:00:10]}  Kc4 {[%clk 0:00:03]} 68. f7 {[%clk 0:00:09]}  Rf5+ {[%clk 0:00:04]} 69. Ke2 {[%clk 0:00:09]}  Ba3 {[%clk 0:00:04]} 70. Be3 {[%clk 0:00:10]}  Bf8 {[%clk 0:00:03]} 71. Rc7+ {[%clk 0:00:07]}  Kd5 {[%clk 0:00:03]} 72. Kd3 {[%clk 0:00:07]}  Rf3 {[%clk 0:00:03]} 73. Ke2 {[%clk 0:00:07]}  Ke4 {[%clk 0:00:04]} 74. Bg5 {[%clk 0:00:06]}  Rf5 {[%clk 0:00:03]} 75. Bf6 {[%clk 0:00:06]}  Bh6 {[%clk 0:00:02]} 76. Rc8 {[%clk 0:00:07]}  Kxd4 {[%clk 0:00:02]} 77. f8=Q {[%clk 0:00:07]}  Bxf8 {[%clk 0:00:02]} 78. Rxf8 {[%clk 0:00:08]}  Rh5 {[%clk 0:00:03]} 79. Kf3 {[%clk 0:00:08]}  Rh1 {[%clk 0:00:03]} 80. Rd8+ {[%clk 0:00:07]}  Kc5 {[%clk 0:00:03]} 81. Kg4 {[%clk 0:00:07]}  Rg1+ {[%clk 0:00:02]} 82. Kh5 {[%clk 0:00:07]}  Kc4 {[%clk 0:00:01]} 83. Rd6 {[%clk 0:00:07]}  Kc5 {[%clk 0:00:02]} 84. Rxe6 {[%clk 0:00:07]}  Kd5 {[%clk 0:00:03]} 85. Rd6+ {[%clk 0:00:08]}  Ke4 {[%clk 0:00:04]} 86. e6 {[%clk 0:00:08]}  Kf5 {[%clk 0:00:04]} 87. e7 {[%clk 0:00:08]}  Re1 {[%clk 0:00:05]} 88. Bh4 {[%clk 0:00:08]}  Re5 {[%clk 0:00:05]} 89. Kh6 {[%clk 0:00:07]}  Kg4 {[%clk 0:00:05]} 90. Bf6 {[%clk 0:00:07]}  Re2 {[%clk 0:00:04]} 91. Kg6 {[%clk 0:00:07]}  Kf4 {[%clk 0:00:05]} 92. Kf7 {[%clk 0:00:08]}  Re4 {[%clk 0:00:05]} 93. Re6 {[%clk 0:00:08]}  Rc4 {[%clk 0:00:05]} 94. e8=Q {[%clk 0:00:09]}  Re4 {[%clk 0:00:06]} 95. Rxe4+ {[%clk 0:00:09]}  Kf5 {[%clk 0:00:07]} 96. Qe5# {[%clk 0:00:09]} 1-0


[Site "https://www.chess.com"]

[Event "Titled Tuesday Blitz December 06 Early 2022"]
[White "Devaev, Alexander"]
[Black "Tarlabasi, Emirhan"]
[WhiteFideId "4169395"]
[BlackFideId "6350275"]
[WhiteElo "2225"]
[BlackElo "2200"]
[Result "0-1"]
[Round "09"]
[TimeControl "180+1"]
[Date "2022.12.07"]
[WhiteClock "0:00:02"]
[BlackClock "0:00:16"]

1. Nf3 {[%clk 0:02:59]}  c5 {[%clk 0:03:00]} 2. c4 {[%clk 0:02:55]}  Nf6 {[%clk 0:02:59]} 3. Nc3 {[%clk 0:02:55]}  e6 {[%clk 0:02:59]} 4. e3 {[%clk 0:02:55]}  b6 {[%clk 0:02:58]} 5. Be2 {[%clk 0:02:53]}  Bb7 {[%clk 0:02:58]} 6. O-O {[%clk 0:02:53]}  Be7 {[%clk 0:02:59]} 7. b3 {[%clk 0:02:54]}  O-O {[%clk 0:02:59]} 8. Bb2 {[%clk 0:02:54]}  d6 {[%clk 0:02:59]} 9. d4 {[%clk 0:02:54]}  cxd4 {[%clk 0:02:59]} 10. Nxd4 {[%clk 0:02:53]}  Nbd7 {[%clk 0:02:57]} 11. Bf3 {[%clk 0:02:34]}  Qc8 {[%clk 0:02:56]} 12. Bxb7 {[%clk 0:02:34]}  Qxb7 {[%clk 0:02:57]} 13. Qf3 {[%clk 0:02:35]}  Qxf3 {[%clk 0:02:55]} 14. gxf3 {[%clk 0:02:35]}  Rac8 {[%clk 0:02:43]} 15. Rfd1 {[%clk 0:02:36]}  a6 {[%clk 0:02:41]} 16. Rd2 {[%clk 0:02:35]}  Rfd8 {[%clk 0:02:23]} 17. Rad1 {[%clk 0:02:35]}  g6 {[%clk 0:02:00]} 18. Na4 {[%clk 0:02:16]}  d5 {[%clk 0:01:35]} 19. cxd5 {[%clk 0:02:13]}  Nxd5 {[%clk 0:01:36]} 20. Ne2 {[%clk 0:02:07]}  b5 {[%clk 0:01:29]} 21. Nac3 {[%clk 0:02:07]}  N7f6 {[%clk 0:01:24]} 22. Nxd5 {[%clk 0:01:53]}  Nxd5 {[%clk 0:01:25]} 23. Ng3 {[%clk 0:01:46]}  h5 {[%clk 0:01:20]} 24. Ne4 {[%clk 0:01:45]}  Bb4 {[%clk 0:01:03]} 25. Rd3 {[%clk 0:01:42]}  Rc2 {[%clk 0:00:58]} 26. Be5 {[%clk 0:01:30]}  Rdc8 {[%clk 0:00:50]} 27. a4 {[%clk 0:01:23]}  bxa4 {[%clk 0:00:44]} 28. bxa4 {[%clk 0:01:24]}  Be7 {[%clk 0:00:45]} 29. f4 {[%clk 0:00:41]}  Ra2 {[%clk 0:00:41]} 30. Rd4 {[%clk 0:00:35]}  f6 {[%clk 0:00:40]} 31. Rxd5 {[%clk 0:00:19]}  exd5 {[%clk 0:00:35]} 32. Nxf6+ {[%clk 0:00:19]}  Bxf6 {[%clk 0:00:29]} 33. Bxf6 {[%clk 0:00:20]}  Rcc2 {[%clk 0:00:30]} 34. Bh4 {[%clk 0:00:18]}  Rd2 {[%clk 0:00:30]} 35. Rc1 {[%clk 0:00:16]}  Rxa4 {[%clk 0:00:31]} 36. Rc8+ {[%clk 0:00:14]}  Kf7 {[%clk 0:00:31]} 37. Rc7+ {[%clk 0:00:14]}  Ke6 {[%clk 0:00:31]} 38. Rc6+ {[%clk 0:00:15]}  Kf5 {[%clk 0:00:32]} 39. Rf6+ {[%clk 0:00:16]}  Ke4 {[%clk 0:00:31]} 40. Rxg6 {[%clk 0:00:16]}  d4 {[%clk 0:00:20]} 41. exd4 {[%clk 0:00:16]}  Raxd4 {[%clk 0:00:16]} 42. Kg2 {[%clk 0:00:10]}  Rd6 {[%clk 0:00:15]} 43. Rg5 {[%clk 0:00:09]}  R2d5 {[%clk 0:00:15]} 44. Rg8 {[%clk 0:00:06]}  a5 {[%clk 0:00:15]} 45. Ra8 {[%clk 0:00:04]}  Rg6+ {[%clk 0:00:14]} 46. Bg3 {[%clk 0:00:04]}  h4 {[%clk 0:00:14]} 47. f5 {[%clk 0:00:05]}  Rxf5 {[%clk 0:00:13]} 48. Re8+ {[%clk 0:00:06]}  Kd5 {[%clk 0:00:12]} 49. Ra8 {[%clk 0:00:05]}  hxg3 {[%clk 0:00:11]} 50. Rxa5+ {[%clk 0:00:06]}  Ke4 {[%clk 0:00:12]} 51. Ra4+ {[%clk 0:00:06]}  Kd3 {[%clk 0:00:12]} 52. hxg3 {[%clk 0:00:06]}  Rgf6 {[%clk 0:00:11]} 53. Ra3+ {[%clk 0:00:07]}  Ke4 {[%clk 0:00:11]} 54. Ra2 {[%clk 0:00:08]}  Rf3 {[%clk 0:00:11]} 55. Re2+ {[%clk 0:00:08]}  Kd4 {[%clk 0:00:11]} 56. Rd2+ {[%clk 0:00:08]}  Ke5 {[%clk 0:00:12]} 57. Re2+ {[%clk 0:00:08]}  Kd5 {[%clk 0:00:12]} 58. Rd2+ {[%clk 0:00:09]}  Ke6 {[%clk 0:00:13]} 59. Re2+ {[%clk 0:00:09]}  Kf7 {[%clk 0:00:14]} 60. Rd2 {[%clk 0:00:10]}  Kg6 {[%clk 0:00:14]} 61. Ra2 {[%clk 0:00:10]}  R3f5 {[%clk 0:00:14]} 62. Re2 {[%clk 0:00:11]}  Kg5 {[%clk 0:00:15]} 63. Rb2 {[%clk 0:00:11]}  Kg4 {[%clk 0:00:14]} 64. Rb4+ {[%clk 0:00:11]}  Kg5 {[%clk 0:00:15]} 65. Rb2 {[%clk 0:00:11]}  Rc5 {[%clk 0:00:15]} 66. Re2 {[%clk 0:00:12]}  Rc4 {[%clk 0:00:15]} 67. Re5+ {[%clk 0:00:12]}  Kg4 {[%clk 0:00:14]} 68. Re2 {[%clk 0:00:13]}  Rf5 {[%clk 0:00:13]} 69. Ra2 {[%clk 0:00:12]}  Rf3 {[%clk 0:00:13]} 70. Ra8 {[%clk 0:00:10]}  Rf5 {[%clk 0:00:13]} 71. Ra2 {[%clk 0:00:09]}  Rd5 {[%clk 0:00:13]} 72. Re2 {[%clk 0:00:09]}  Rdd4 {[%clk 0:00:12]} 73. Ra2 {[%clk 0:00:08]}  Rd5 {[%clk 0:00:12]} 74. Re2 {[%clk 0:00:08]}  Rdc5 {[%clk 0:00:12]} 75. Re8 {[%clk 0:00:03]}  Rc8 {[%clk 0:00:12]} 76. Re2 {[%clk 0:00:03]}  R4c5 {[%clk 0:00:12]} 77. Re4+ {[%clk 0:00:03]}  Kg5 {[%clk 0:00:12]} 78. Re2 {[%clk 0:00:04]}  Rc4 {[%clk 0:00:12]} 79. Re5+ {[%clk 0:00:04]}  Kf6 {[%clk 0:00:12]} 80. Re2 {[%clk 0:00:04]}  Rh8 {[%clk 0:00:12]} 81. Ra2 {[%clk 0:00:04]}  Rc5 {[%clk 0:00:13]} 82. Ra6+ {[%clk 0:00:04]}  Kg5 {[%clk 0:00:13]} 83. Ra2 {[%clk 0:00:05]}  Rb5 {[%clk 0:00:13]} 84. Re2 {[%clk 0:00:05]}  Rh5 {[%clk 0:00:13]} 85. Ra2 {[%clk 0:00:04]}  Rb4 {[%clk 0:00:13]} 86. Ra5+ {[%clk 0:00:04]}  Kg6 {[%clk 0:00:14]} 87. Ra2 {[%clk 0:00:05]}  Rb6 {[%clk 0:00:14]} 88. Re2 {[%clk 0:00:06]}  Rb7 {[%clk 0:00:14]} 89. Ra2 {[%clk 0:00:06]}  Rbh7 {[%clk 0:00:14]} 90. Ra6+ {[%clk 0:00:06]}  Kf5 {[%clk 0:00:15]} 91. Ra5+ {[%clk 0:00:06]}  Ke4 {[%clk 0:00:16]} 92. Ra4+ {[%clk 0:00:06]}  Kd3 {[%clk 0:00:16]} 93. Ra3+ {[%clk 0:00:07]}  Kc4 {[%clk 0:00:16]} 94. Ra4+ {[%clk 0:00:05]}  Kb5 {[%clk 0:00:17]} 95. Rf4 {[%clk 0:00:06]}  Rh2+ {[%clk 0:00:17]} 96. Kf3 {[%clk 0:00:06]}  Rd7 {[%clk 0:00:17]} 97. g4 {[%clk 0:00:02]}  Rd2 {[%clk 0:00:17]} 98. Kg3 {[%clk 0:00:02]}  Rh1 {[%clk 0:00:16]} 0-1


[Site "https://www.chess.com"]

[Event "Titled Tuesday Blitz December 06 Early 2022"]
[White "Durarbayli, Vasif"]
[Black "Ohanyan, Emin"]
[WhiteFideId "13402935"]
[BlackFideId "13312022"]
[WhiteElo "2576"]
[BlackElo "2352"]
[Result "0-1"]
[Round "09"]
[TimeControl "180+1"]
[Date "2022.12.06"]
[WhiteClock "0:00:03"]
[BlackClock "0:00:16"]

1. e4 {[%clk 0:03:00]}  e5 {[%clk 0:02:59]} 2. Nf3 {[%clk 0:03:00]}  Nc6 {[%clk 0:03:00]} 3. Bb5 {[%clk 0:03:01]}  f5 {[%clk 0:03:00]} 4. d3 {[%clk 0:02:58]}  fxe4 {[%clk 0:02:59]} 5. dxe4 {[%clk 0:02:59]}  Nf6 {[%clk 0:03:00]} 6. Be3 {[%clk 0:02:51]}  Bd6 {[%clk 0:02:17]} 7. Qd3 {[%clk 0:02:34]}  Qe7 {[%clk 0:02:15]} 8. Nc3 {[%clk 0:02:32]}  Bb4 {[%clk 0:02:08]} 9. O-O-O {[%clk 0:02:28]}  Bxc3 {[%clk 0:02:04]} 10. Qxc3 {[%clk 0:02:28]}  Nxe4 {[%clk 0:02:03]} 11. Qb3 {[%clk 0:02:13]}  Nf6 {[%clk 0:01:55]} 12. Qc3 {[%clk 0:01:16]}  O-O {[%clk 0:01:50]} 13. Bxc6 {[%clk 0:01:05]}  bxc6 {[%clk 0:01:29]} 14. Qxe5 {[%clk 0:01:05]}  Qf7 {[%clk 0:01:28]} 15. Kb1 {[%clk 0:01:00]}  d6 {[%clk 0:01:28]} 16. Qa5 {[%clk 0:00:54]}  c5 {[%clk 0:01:23]} 17. Ng5 {[%clk 0:00:54]}  Qg6 {[%clk 0:01:20]} 18. h4 {[%clk 0:00:34]}  h6 {[%clk 0:01:09]} 19. Nh3 {[%clk 0:00:33]}  Bf5 {[%clk 0:01:04]} 20. Rc1 {[%clk 0:00:29]}  Rab8 {[%clk 0:00:58]} 21. Nf4 {[%clk 0:00:24]}  Qf7 {[%clk 0:00:59]} 22. f3 {[%clk 0:00:19]}  Bh7 {[%clk 0:00:47]} 23. Rhe1 {[%clk 0:00:16]}  Nd7 {[%clk 0:00:41]} 24. Qxc7 {[%clk 0:00:13]}  Rb6 {[%clk 0:00:28]} 25. Qxa7 {[%clk 0:00:07]}  Rfb8 {[%clk 0:00:28]} 26. Qa3 {[%clk 0:00:07]}  Rxb2+ {[%clk 0:00:16]} 27. Qxb2 {[%clk 0:00:07]}  Rxb2+ {[%clk 0:00:16]} 28. Kxb2 {[%clk 0:00:08]}  Nb6 {[%clk 0:00:17]} 29. Ka1 {[%clk 0:00:08]}  Bf5 {[%clk 0:00:15]} 30. Ne2 {[%clk 0:00:07]}  Be6 {[%clk 0:00:15]} 31. Rb1 {[%clk 0:00:07]}  Na4 {[%clk 0:00:14]} 32. Rb8+ {[%clk 0:00:06]}  Kh7 {[%clk 0:00:15]} 33. Ra8 {[%clk 0:00:06]}  Nb6 {[%clk 0:00:14]} 34. Ra6 {[%clk 0:00:05]}  Qb7 {[%clk 0:00:13]} 35. Ra3 {[%clk 0:00:03]}  Nc4 {[%clk 0:00:13]} 36. Rb3 {[%clk 0:00:04]}  Qa6 {[%clk 0:00:14]} 37. Bc1 {[%clk 0:00:04]}  Ne3 {[%clk 0:00:10]} 38. Bxe3 {[%clk 0:00:04]}  Bxb3 {[%clk 0:00:10]} 39. cxb3 {[%clk 0:00:04]}  Qd3 {[%clk 0:00:11]} 40. Bc1 {[%clk 0:00:03]}  Qc2 {[%clk 0:00:11]} 41. Nf4 {[%clk 0:00:02]}  Qc3+ {[%clk 0:00:12]} 42. Kb1 {[%clk 0:00:02]}  Qxe1 {[%clk 0:00:13]} 43. a4 {[%clk 0:00:02]}  Qd1 {[%clk 0:00:12]} 44. Kb2 {[%clk 0:00:02]}  d5 {[%clk 0:00:12]} 45. a5 {[%clk 0:00:02]}  c4 {[%clk 0:00:13]} 46. bxc4 {[%clk 0:00:02]}  dxc4 {[%clk 0:00:14]} 47. a6 {[%clk 0:00:01]}  Qb3+ {[%clk 0:00:14]} 48. Ka1 {[%clk 0:00:02]}  c3 {[%clk 0:00:14]} 49. Ne2 {[%clk 0:00:02]}  Qa4+ {[%clk 0:00:13]} 50. Kb1 {[%clk 0:00:03]}  Qb5+ {[%clk 0:00:14]} 51. Kc2 {[%clk 0:00:02]}  Qxe2+ {[%clk 0:00:15]} 52. Kxc3 {[%clk 0:00:03]}  Qxa6 {[%clk 0:00:16]} 0-1


[Site "https://www.chess.com"]

[Event "Titled Tuesday Blitz December 06 Early 2022"]
[White "Dushyant Sharma"]
[Black "Muminova, Nafisa"]
[WhiteFideId "25065130"]
[BlackFideId "14201526"]
[WhiteElo "2280"]
[BlackElo "2258"]
[Result "1-0"]
[Round "09"]
[TimeControl "180+1"]
[Date "2022.12.07"]
[WhiteClock "0:00:18"]
[BlackClock "0:00:02"]

1. e4 {[%clk 0:02:54]}  e6 {[%clk 0:02:59]} 2. d4 {[%clk 0:02:50]}  d5 {[%clk 0:03:00]} 3. exd5 {[%clk 0:02:50]}  exd5 {[%clk 0:02:59]} 4. Bd3 {[%clk 0:02:51]}  Bd6 {[%clk 0:02:58]} 5. Nf3 {[%clk 0:02:51]}  Bg4 {[%clk 0:02:56]} 6. O-O {[%clk 0:02:50]}  Nc6 {[%clk 0:02:55]} 7. c3 {[%clk 0:02:51]}  Nge7 {[%clk 0:02:55]} 8. Be3 {[%clk 0:02:50]}  Qd7 {[%clk 0:02:55]} 9. Nbd2 {[%clk 0:02:51]}  f6 {[%clk 0:02:51]} 10. a4 {[%clk 0:02:48]}  O-O-O {[%clk 0:02:50]} 11. b4 {[%clk 0:02:48]}  Rde8 {[%clk 0:02:50]} 12. a5 {[%clk 0:02:48]}  Kb8 {[%clk 0:02:48]} 13. b5 {[%clk 0:02:48]}  Nd8 {[%clk 0:02:48]} 14. b6 {[%clk 0:02:49]}  cxb6 {[%clk 0:02:43]} 15. axb6 {[%clk 0:02:49]}  a6 {[%clk 0:02:44]} 16. c4 {[%clk 0:02:48]}  g5 {[%clk 0:02:29]} 17. c5 {[%clk 0:02:23]}  Bf4 {[%clk 0:02:29]} 18. Bxf4+ {[%clk 0:02:24]}  gxf4 {[%clk 0:02:29]} 19. Bxa6 {[%clk 0:02:22]}  bxa6 {[%clk 0:02:21]} 20. Rxa6 {[%clk 0:02:23]}  Ndc6 {[%clk 0:02:16]} 21. Qa4 {[%clk 0:02:20]}  Qb7 {[%clk 0:02:16]} 22. Ra1 {[%clk 0:02:18]}  Kc8 {[%clk 0:02:00]} 23. Ra8+ {[%clk 0:02:15]}  Kd7 {[%clk 0:02:00]} 24. Ra7 {[%clk 0:02:15]}  Qxa7 {[%clk 0:01:54]} 25. bxa7 {[%clk 0:02:16]}  Ra8 {[%clk 0:01:53]} 26. Qa6 {[%clk 0:02:14]}  Rxa7 {[%clk 0:01:34]} 27. Qf1 {[%clk 0:02:10]}  Rha8 {[%clk 0:01:29]} 28. Rxa7+ {[%clk 0:02:06]}  Rxa7 {[%clk 0:01:30]} 29. h3 {[%clk 0:02:07]}  Bf5 {[%clk 0:01:27]} 30. Qc1 {[%clk 0:01:57]}  Nb4 {[%clk 0:01:23]} 31. Kh2 {[%clk 0:01:51]}  Nec6 {[%clk 0:01:18]} 32. Nh4 {[%clk 0:01:50]}  Nd3 {[%clk 0:01:06]} 33. Qb1 {[%clk 0:00:33]}  Be4 {[%clk 0:00:53]} 34. f3 {[%clk 0:00:32]}  f5 {[%clk 0:00:26]} 35. fxe4 {[%clk 0:00:29]}  fxe4 {[%clk 0:00:25]} 36. Nf5 {[%clk 0:00:25]}  Ndb4 {[%clk 0:00:11]} 37. Nxe4 {[%clk 0:00:22]}  dxe4 {[%clk 0:00:10]} 38. Qxe4 {[%clk 0:00:23]}  Ra2 {[%clk 0:00:08]} 39. d5 {[%clk 0:00:22]}  Rd2 {[%clk 0:00:02]} 40. Qe6+ {[%clk 0:00:20]}  Kc7 {[%clk 0:00:02]} 41. Qd6+ {[%clk 0:00:17]}  Kb7 {[%clk 0:00:02]} 42. dxc6+ {[%clk 0:00:17]}  Nxc6 {[%clk 0:00:02]} 43. Qxd2 {[%clk 0:00:18]} 1-0


[Site "https://www.chess.com"]

[Event "Titled Tuesday Blitz December 06 Early 2022"]
[White "Farmani Anosheh, Armin"]
[Black "Averjanov, Alexey"]
[WhiteFideId "24613240"]
[BlackFideId "14109867"]
[WhiteElo "2289"]
[BlackElo "2696"]
[Result "1-0"]
[Round "09"]
[TimeControl "180+1"]
[Date "2022.12.07"]
[WhiteClock "0:00:08"]
[BlackClock "0:00:04"]

1. d4 {[%clk 0:03:00]}  d5 {[%clk 0:02:42]} 2. c4 {[%clk 0:03:00]}  dxc4 {[%clk 0:02:41]} 3. e4 {[%clk 0:03:00]}  Nf6 {[%clk 0:02:40]} 4. e5 {[%clk 0:02:59]}  Nd5 {[%clk 0:02:39]} 5. Bxc4 {[%clk 0:02:59]}  Nb6 {[%clk 0:02:39]} 6. Bd3 {[%clk 0:02:59]}  Nc6 {[%clk 0:02:39]} 7. Ne2 {[%clk 0:02:59]}  Nb4 {[%clk 0:02:39]} 8. Be4 {[%clk 0:02:56]}  N4d5 {[%clk 0:02:39]} 9. Nbc3 {[%clk 0:02:54]}  Be6 {[%clk 0:02:39]} 10. O-O {[%clk 0:02:28]}  Qd7 {[%clk 0:02:39]} 11. a4 {[%clk 0:02:13]}  a5 {[%clk 0:02:38]} 12. Nf4 {[%clk 0:02:04]}  Nxf4 {[%clk 0:02:37]} 13. Bxf4 {[%clk 0:02:05]}  Nd5 {[%clk 0:02:37]} 14. Bd2 {[%clk 0:01:37]}  c6 {[%clk 0:02:30]} 15. Re1 {[%clk 0:01:33]}  g6 {[%clk 0:02:27]} 16. Qc1 {[%clk 0:01:29]}  Bg7 {[%clk 0:02:22]} 17. Bh6 {[%clk 0:01:29]}  O-O {[%clk 0:02:17]} 18. h4 {[%clk 0:01:20]}  Rfd8 {[%clk 0:02:13]} 19. Bxg7 {[%clk 0:01:16]}  Kxg7 {[%clk 0:02:12]} 20. h5 {[%clk 0:01:12]}  Rac8 {[%clk 0:02:05]} 21. Qg5 {[%clk 0:00:59]}  h6 {[%clk 0:01:57]} 22. Qg3 {[%clk 0:00:58]}  g5 {[%clk 0:01:55]} 23. Bxd5 {[%clk 0:00:42]}  Bxd5 {[%clk 0:01:52]} 24. f4 {[%clk 0:00:42]}  f6 {[%clk 0:01:51]} 25. Kh2 {[%clk 0:00:23]}  Rf8 {[%clk 0:01:40]} 26. Re3 {[%clk 0:00:19]}  Rce8 {[%clk 0:01:36]} 27. Rae1 {[%clk 0:00:18]}  Kh8 {[%clk 0:01:25]} 28. Nxd5 {[%clk 0:00:17]}  cxd5 {[%clk 0:01:24]} 29. fxg5 {[%clk 0:00:12]}  fxg5 {[%clk 0:01:20]} 30. e6 {[%clk 0:00:13]}  Qxa4 {[%clk 0:01:06]} 31. Qe5+ {[%clk 0:00:12]}  Kg8 {[%clk 0:01:06]} 32. Qxd5 {[%clk 0:00:13]}  Qc2 {[%clk 0:01:03]} 33. R1e2 {[%clk 0:00:13]}  Qf5 {[%clk 0:01:01]} 34. Qxf5 {[%clk 0:00:10]}  Rxf5 {[%clk 0:01:02]} 35. Re5 {[%clk 0:00:11]}  Rxe5 {[%clk 0:00:58]} 36. Rxe5 {[%clk 0:00:12]}  Rd8 {[%clk 0:00:56]} 37. Rxa5 {[%clk 0:00:12]}  Rxd4 {[%clk 0:00:56]} 38. Rb5 {[%clk 0:00:12]}  Rd6 {[%clk 0:00:53]} 39. Rxb7 {[%clk 0:00:10]}  Rxe6 {[%clk 0:00:53]} 40. Kg3 {[%clk 0:00:11]}  Kf7 {[%clk 0:00:52]} 41. Kf3 {[%clk 0:00:11]}  Kf6 {[%clk 0:00:50]} 42. g4 {[%clk 0:00:11]}  Rc6 {[%clk 0:00:46]} 43. Rb5 {[%clk 0:00:10]}  Rc4 {[%clk 0:00:44]} 44. Kg3 {[%clk 0:00:10]}  e6 {[%clk 0:00:43]} 45. Rb8 {[%clk 0:00:10]}  Ke5 {[%clk 0:00:37]} 46. Rh8 {[%clk 0:00:07]}  Rb4 {[%clk 0:00:37]} 47. Rxh6 {[%clk 0:00:07]}  Rb3+ {[%clk 0:00:37]} 48. Kf2 {[%clk 0:00:06]}  Rxb2+ {[%clk 0:00:37]} 49. Kf3 {[%clk 0:00:06]}  Rb3+ {[%clk 0:00:37]} 50. Kf2 {[%clk 0:00:03]}  Rh3 {[%clk 0:00:31]} 51. Rg6 {[%clk 0:00:03]}  Kf4 {[%clk 0:00:32]} 52. Rxe6 {[%clk 0:00:04]}  Kxg4 {[%clk 0:00:32]} 53. h6 {[%clk 0:00:04]}  Rh2+ {[%clk 0:00:30]} 54. Kg1 {[%clk 0:00:04]}  Rh4 {[%clk 0:00:27]} 55. Ra6 {[%clk 0:00:04]}  Kf5 {[%clk 0:00:25]} 56. Kg2 {[%clk 0:00:04]}  g4 {[%clk 0:00:24]} 57. Kg3 {[%clk 0:00:03]}  Rh3+ {[%clk 0:00:24]} 58. Kg2 {[%clk 0:00:04]}  Kg5 {[%clk 0:00:23]} 59. Rb6 {[%clk 0:00:02]}  Ra3 {[%clk 0:00:18]} 60. Rc6 {[%clk 0:00:01]}  Ra2+ {[%clk 0:00:15]} 61. Kg3 {[%clk 0:00:02]}  Ra3+ {[%clk 0:00:16]} 62. Kg2 {[%clk 0:00:02]}  Ra7 {[%clk 0:00:14]} 63. Rb6 {[%clk 0:00:02]}  Re7 {[%clk 0:00:13]} 64. Ra6 {[%clk 0:00:02]}  Kh4 {[%clk 0:00:13]} 65. Rg6 {[%clk 0:00:01]}  Re2+ {[%clk 0:00:12]} 66. Kf1 {[%clk 0:00:02]}  Re7 {[%clk 0:00:12]} 67. Rg7 {[%clk 0:00:02]}  Re8 {[%clk 0:00:12]} 68. h7 {[%clk 0:00:03]}  Rh8 {[%clk 0:00:12]} 69. Kg2 {[%clk 0:00:03]}  Kh5 {[%clk 0:00:11]} 70. Ra7 {[%clk 0:00:04]}  Kh4 {[%clk 0:00:10]} 71. Rb7 {[%clk 0:00:03]}  Rd8 {[%clk 0:00:10]} 72. Rd7 {[%clk 0:00:03]}  Rh8 {[%clk 0:00:06]} 73. Rg7 {[%clk 0:00:02]}  Rd8 {[%clk 0:00:06]} 74. Rg8 {[%clk 0:00:03]}  Rd2+ {[%clk 0:00:05]} 75. Kf1 {[%clk 0:00:03]}  Rd1+ {[%clk 0:00:04]} 76. Ke2 {[%clk 0:00:04]}  Rd5 {[%clk 0:00:03]} 77. h8=Q+ {[%clk 0:00:05]}  Kg3 {[%clk 0:00:03]} 78. Qc3+ {[%clk 0:00:05]}  Kg2 {[%clk 0:00:04]} 79. Re8 {[%clk 0:00:05]}  Rf5 {[%clk 0:00:03]} 80. Re3 {[%clk 0:00:06]}  Kh2 {[%clk 0:00:02]} 81. Rg3 {[%clk 0:00:06]}  Re5+ {[%clk 0:00:02]} 82. Kd2 {[%clk 0:00:05]}  Kh1 {[%clk 0:00:03]} 83. Re3 {[%clk 0:00:06]}  Rf5 {[%clk 0:00:02]} 84. Kc2 {[%clk 0:00:06]}  Rf2+ {[%clk 0:00:03]} 85. Kb3 {[%clk 0:00:06]}  Rg2 {[%clk 0:00:03]} 86. Qe1+ {[%clk 0:00:07]}  Kh2 {[%clk 0:00:04]} 87. Qh4+ {[%clk 0:00:07]}  Kg1 {[%clk 0:00:04]} 88. Re1# {[%clk 0:00:08]} 1-0


[Site "https://www.chess.com"]